fUST/lending_fUST_20260408
["ID","MTS","AMOUNT","RATE_DAILY","PERIOD"]
[419987103,1775584446672,500.0,0.00033933,120]
[419987104,1775584450256,237.64672879,0.000324,120]
[419987105,1775584453262,500.0,0.00033933,120]
[419987106,1775584456590,170.7047702,0.000324,120]
[419987107,1775584459567,500.0,0.00033933,120]
[419987108,1775584461007,318.1418456,0.000324,120]
[419987109,1775584467970,961.20888258,0.000324,120]
[419987110,1775584469209,304.7496264,0.000324,120]
[419987111,1775584472437,348.74022392,0.000324,120]
[419987112,1775584645684,500.0,0.00033927,120]
[419987113,1775584711622,166.55233201,0.000324,120]
[419987114,1775584720457,183.88088041,0.000324,120]
[419987115,1775584730468,170.2237334,0.000324,120]
[419987116,1775584740351,304.69715039,0.000324,120]
[419987117,1775584750706,243.75772031,0.000324,120]
[419987118,1775584756092,499.52222716,0.000324,120]
[419987119,1775584758689,172.76547367,0.000324,120]
[419987120,1775584763844,190.11738303,0.000324,120]
[419987121,1775584770280,170.7047702,0.000324,120]
[419987122,1775584774714,254.51347648,0.000324,120]
[419987123,1775584781696,768.96710606,0.000324,120]
[419987124,1775584783167,243.79970112,0.000324,120]
[419987125,1775584786122,278.99217913,0.000324,120]
[419987128,1775584877967,197.461394,0.00028192,120]
[419987129,1775584882477,-903.82977073,0.00013699,2]
[419987130,1775584882490,-96.17022927,0.00013699,2]
[419987131,1775584944917,236.9,0.00033927,120]
[419987132,1775585024751,166.552332,0.000324,120]
[419987133,1775585040113,183.88088041,0.000324,120]
[419987134,1775585043674,170.22373339,0.000324,120]
[419987137,1775585056356,195.00617625,0.000324,120]
[419987138,1775585057012,195.00617625,0.000324,120]
[419987139,1775585070320,399.61778173,0.000324,120]
[419987140,1775585070734,172.76547366,0.000324,120]
[419987141,1775585077456,190.11738303,0.000324,120]
[419987142,1775585083458,170.70477021,0.000324,120]
[419987143,1775585088377,203.61078119,0.000324,120]
[419987144,1775585098955,615.17368485,0.000324,120]
[419987145,1775585099954,223.19374331,0.000324,120]
[419987154,1775585110932,195.03976089,0.000324,120]
[419987179,1775585337266,166.55233201,0.000324,120]
[419987180,1775585354626,183.88088041,0.000324,120]
[419987181,1775585356947,293.94584746,0.00033927,120]
[419987188,1775585361791,195.00617625,0.000324,120]
[419987189,1775585371241,195.00617624,0.000324,120]
[419987190,1775585371504,195.00617624,0.000324,120]
[419987191,1775585383236,434.06526893,0.00033927,120]
[419987192,1775585383785,1033.98858681,0.00033927,120]
[419987193,1775585384425,319.69422538,0.000324,120]
[419987194,1775585390518,190.11738303,0.000324,120]
[419987195,1775585391986,981.47524016,0.00033927,120]
[419987197,1775585396539,170.7047702,0.000324,120]
[419987198,1775585400867,740.90206503,0.00033927,120]
[419987199,1775585401943,768.56533748,0.00033927,120]
[419987200,1775585402323,209498.98249646,0.00027,120]
[419987201,1775585402357,162.88862495,0.000324,120]
[419987202,1775585403891,599.999999,0.00033927,120]
[419987203,1775585405229,488.31596421,0.00033927,120]
[419987206,1775585405618,655.47186565,0.00033927,120]
[419987207,1775585406882,3010.18108311,0.00033927,120]
[419987208,1775585407980,1080.07655302,0.00033927,120]
[419987209,1775585408405,944.52932101,0.00033927,120]
[419987210,1775585408492,390.22743249,0.00033927,120]
[419987211,1775585409564,559.58564794,0.00033927,120]
[419987212,1775585409605,325.49438335,0.00033927,120]
[419987214,1775585409828,230.59187745,0.00033927,120]
[419987215,1775585410711,338.32815493,0.00033927,120]
[419987216,1775585411788,583.64991793,0.00033927,120]
[419987217,1775585411888,589.82632742,0.00033927,120]
[419987218,1775585412821,507.68259591,0.00033927,120]
[419987219,1775585413270,1061.78595024,0.00033927,120]
[419987220,1775585413682,201.14273412,0.00033927,120]
[419987221,1775585413768,492.13894788,0.000324,120]
[419987222,1775585413971,11619.49679423,0.00033927,120]
[419987229,1775585414448,178.55499464,0.000324,120]
[419987230,1775585415735,378.05151963,0.00033927,120]
[419987231,1775585415886,367.75928888,0.00033927,120]
[419987232,1775585416501,182.20016448,0.00033927,120]
[419987233,1775585416749,565.5427289,0.00033927,120]
[419987234,1775585416803,521.30325367,0.00033927,120]
[419987235,1775585417478,165.049999,0.0003,120]
[419987236,1775585417603,580.83707444,0.00033927,120]
[419987237,1775585417637,204.26647637,0.00033927,120]
[419987238,1775585417670,478.56235993,0.00033927,120]
[419987239,1775585417986,167.05501486,0.00033927,120]
[419987240,1775585419640,1035.27684089,0.00033927,120]
[419987241,1775585419676,1078.8067595,0.00033927,120]
[419987242,1775585419711,16080.31170876,0.00032,120]
[419987243,1775585419877,200.0,0.00033927,120]
[419987244,1775585420971,162.94615495,0.00033927,120]
[419987245,1775585421097,1000.54540687,0.00033927,120]
[419987246,1775585421678,981.02318528,0.00033927,120]
[419987247,1775585421940,602.59645082,0.00033927,120]
[419987248,1775585423966,503.661524,0.0003,120]
[419987249,1775585424638,195.03976089,0.000324,120]
[419987525,1775585440823,-1000.0,0.00013699,2]
[419987527,1775585440832,-172.93,0.0002,2]
[419987528,1775585440842,-169.57,0.0002,2]
[419987530,1775585440851,-1090.6418704,0.00022,2]
[419987534,1775585440874,-13753.06338457,0.00022,2]
[419987545,1775585440975,-4214.35009943,0.00022,2]
[419987547,1775585440986,-8062.67349115,0.00022,2]
[419987604,1775585443188,-2323.8312555,0.00022,2]
[419987605,1775585443347,-8949.7559101,0.00022,2]
[419987607,1775585446875,-21414.55398311,0.00022,2]
[419987608,1775585446935,-297.6593243,0.00022,2]
[419987613,1775585653803,166.552332,0.000324,120]
[419987614,1775585667147,183.88088041,0.000324,120]
[419987615,1775585698347,255.7553803,0.000324,120]
[419987616,1775585703325,190.11738303,0.000324,120]
[419987617,1775585708887,170.70477021,0.000324,120]
[419987618,1775585716577,162.88862495,0.000324,120]
[419987619,1775585727926,393.7111583,0.000324,120]
[419987620,1775585728620,178.55499464,0.000324,120]
[419987621,1775585738029,195.03976089,0.000324,120]
[419987623,1775585791382,783.65,0.00033924,120]
[419987624,1775585846664,317.0,0.00033924,120]
[419987627,1775585979160,183.8808804,0.000324,120]
[419987629,1775586012349,204.60430424,0.000324,120]
[419987630,1775586016054,190.11738303,0.000324,120]
[419987631,1775586029783,162.88862495,0.000324,120]
[419987632,1775586041824,314.96892664,0.000324,120]
[419987633,1775586041860,178.55499465,0.000324,120]
[419987634,1775586050616,195.03976089,0.000324,120]
[419987637,1775586326359,163.6834434,0.000324,120]
[419987638,1775586342387,162.88862495,0.000324,120]
[419987639,1775586355064,178.55499464,0.000324,120]
[419987640,1775586355452,251.97514131,0.000324,120]
[419987641,1775586362946,195.0397609,0.000324,120]
[419987648,1775586572972,677287.10008875,0.00033935,120]
[419987678,1775586632832,-665.05,0.00013699,2]
[419987680,1775586632844,-334.95,0.00013699,2]
[419987682,1775586632854,-161.82903881,0.00019917,2]
[419987684,1775586632863,-646.6688391,0.00019917,2]
[419987686,1775586632873,-861.19,0.0002,2]
[419987688,1775586632882,-192.8428016,0.00020731,2]
[419987690,1775586632891,-300.0,0.00020982,2]
[419987692,1775586632901,-329.775,0.0002156,2]
[419987694,1775586632910,-1530.2429571,0.00021899,2]
[419987696,1775586632919,-426.16305732,0.000219,2]
[419987698,1775586632929,-1200.0,0.00021971,2]
[419987699,1775586632938,-300.0,0.00021972,2]
[419987701,1775586632948,-500.0,0.00021973,2]
[419987703,1775586632958,-500.0,0.00021973,2]
[419987706,1775586632967,-417.22291269,0.00021973,2]
[419987708,1775586632984,-82.77708731,0.00021973,2]
[419987710,1775586632994,-500.0,0.00021973,2]
[419987712,1775586633003,-709.97641195,0.00021973,2]
[419987714,1775586633012,-500.0,0.00021973,2]
[419987716,1775586633022,-500.0,0.00021973,2]
[419987718,1775586633031,-500.0,0.00021999,2]
[419987720,1775586633041,-500.0,0.00021999,2]
[419987722,1775586633051,-500.0,0.00021999,2]
[419987724,1775586633061,-500.0,0.00021999,2]
[419987726,1775586633070,-500.0,0.00021999,2]
[419987728,1775586633080,-500.0,0.00021999,2]
[419987730,1775586633090,-500.0,0.00021999,2]
[419987732,1775586633101,-500.0,0.00021999,2]
[419987734,1775586633111,-500.0,0.00021999,2]
[419987736,1775586633121,-500.0,0.00021999,2]
[419987738,1775586633130,-500.0,0.00021999,2]
[419987740,1775586633140,-500.0,0.00021999,2]
[419987742,1775586633150,-184.21093628,0.00021999,2]
[419987743,1775586633160,-500.0,0.00021999,2]
[419987744,1775586633169,-500.0,0.00021999,2]
[419987745,1775586633179,-500.0,0.00021999,2]
[419987746,1775586633190,-500.0,0.00021999,2]
[419987747,1775586633200,-500.0,0.00021999,2]
[419987748,1775586633210,-500.0,0.00021999,2]
[419987749,1775586633220,-500.0,0.00021999,2]
[419987750,1775586633231,-500.0,0.00021999,2]
[419987751,1775586633240,-500.0,0.00021999,2]
[419987752,1775586633250,-500.0,0.00021999,2]
[419987753,1775586633260,-500.0,0.00021999,2]
[419987754,1775586633270,-500.0,0.00021999,2]
[419987755,1775586633280,-500.0,0.00021999,2]
[419987756,1775586633291,-500.0,0.00021999,2]
[419987757,1775586633301,-500.0,0.00021999,2]
[419987758,1775586633311,-421.62346768,0.00021999,2]
[419987759,1775586633321,-500.0,0.00021999,2]
[419987760,1775586633331,-500.0,0.00021999,2]
[419987761,1775586633341,-157.54647677,0.00021999,2]
[419987762,1775586633352,-500.0,0.00021999,2]
[419987763,1775586633363,-500.0,0.00021999,2]
[419987764,1775586633372,-500.0,0.00021999,2]
[419987765,1775586633383,-500.0,0.00021999,2]
[419987766,1775586633393,-642.75533206,0.00021999,2]
[419987767,1775586633403,-500.0,0.00021999,2]
[419987768,1775586633412,-500.0,0.00021999,2]
[419987769,1775586633422,-500.0,0.00021999,2]
[419987770,1775586633432,-500.0,0.00021999,2]
[419987771,1775586633442,-275.01432369,0.00021999,2]
[419987772,1775586633453,-500.0,0.00021999,2]
[419987773,1775586633463,-500.0,0.00021999,2]
[419987774,1775586633473,-500.0,0.00021999,2]
[419987775,1775586633484,-500.0,0.00021999,2]
[419987776,1775586633494,-500.0,0.00021999,2]
[419987777,1775586633505,-500.0,0.00021999,2]
[419987778,1775586633514,-500.0,0.00021999,2]
[419987779,1775586633524,-500.0,0.00021999,2]
[419987780,1775586633533,-792.72621347,0.00021999,2]
[419987781,1775586633543,-792.72621347,0.00021999,2]
[419987782,1775586633553,-792.72621347,0.00021999,2]
[419987783,1775586633563,-792.72621347,0.00021999,2]
[419987784,1775586633572,-792.72621347,0.00021999,2]
[419987785,1775586633583,-792.72621347,0.00021999,2]
[419987786,1775586633592,-792.72621347,0.00021999,2]
[419987787,1775586633602,-792.72621347,0.00021999,2]
[419987788,1775586633613,-792.72621347,0.00021999,2]
[419987789,1775586633623,-792.72621347,0.00021999,2]
[419987790,1775586633632,-792.72621347,0.00021999,2]
[419987791,1775586633643,-792.72621347,0.00021999,2]
[419987792,1775586633652,-792.72621347,0.00021999,2]
[419987793,1775586633662,-792.72621347,0.00021999,2]
[419987794,1775586633672,-792.72621347,0.00021999,2]
[419987795,1775586633682,-832.36252413,0.00021999,2]
[419987796,1775586633693,-832.36252413,0.00021999,2]
[419987797,1775586633702,-832.36252413,0.00021999,2]
[419987798,1775586633711,-832.36252413,0.00021999,2]
[419987799,1775586633722,-832.36252413,0.00021999,2]
[419987800,1775586633732,-832.36252413,0.00021999,2]
[419987801,1775586633743,-832.36252413,0.00021999,2]
[419987802,1775586633752,-832.36252413,0.00021999,2]
[419987803,1775586633762,-832.36252413,0.00021999,2]
[419987804,1775586633772,-641.93273797,0.00021999,2]
[419987805,1775586633782,-500.0,0.00021999,2]
[419987806,1775586633793,-500.0,0.00021999,2]
[419987807,1775586633802,-500.0,0.00021999,2]
[419987808,1775586633811,-500.0,0.00021999,2]
[419987809,1775586633821,-500.0,0.00021999,2]
[419987810,1775586633830,-250.0,0.00021999,2]
[419987811,1775586633840,-500.0,0.00021999,2]
[419987812,1775586633850,-38154.22808151,0.00022,2]
[419987831,1775586638918,-74575.23628391,0.00022,2]
[419987834,1775586638930,-29645.73086605,0.00022,2]
[419988006,1775586641011,163.68344339,0.000324,120]
[419988232,1775586643296,-391246.45249433,0.00022,2]
[419988234,1775586643306,-516.88,0.00022,2]
[419988236,1775586643316,-516.88,0.00022,2]
[419988238,1775586643326,-984.56,0.00022,2]
[419988240,1775586643336,-200.0,0.00022068,2]
[419988242,1775586643346,-1000.0,0.00022521,2]
[419988244,1775586643356,-1045.02493129,0.00022521,2]
[419988247,1775586643367,-831.58691595,0.00022521,2]
[419988248,1775586643377,-1000.0,0.00022521,2]
[419988251,1775586643387,-1000.0,0.00022521,2]
[419988253,1775586643396,-426.16305729,0.0002265,2]
[419988255,1775586643406,-1000.0,0.00022661,30]
[419988257,1775586643415,-1530.24295706,0.0002301,2]
[419988259,1775586643426,-200.0,0.0002301,2]
[419988261,1775586643436,-1008.96022751,0.00023068,2]
[419988263,1775586643447,-500.0,0.00023068,2]
[419988265,1775586643457,-500.0,0.00023068,2]
[419988267,1775586643468,-397.86,0.000231,2]
[419988269,1775586643480,-426.16305729,0.000234,2]
[419988271,1775586643490,-300.0,0.00023877,2]
[419988273,1775586643500,-1200.0,0.00023988,2]
[419988275,1775586643510,-1530.24295706,0.0002412,2]
[419988277,1775586643520,-426.16305729,0.0002415,2]
[419988279,1775586643531,-529.07138032,0.00024453,2]
[419988281,1775586643541,-223.98099233,0.00024453,2]
[419988283,1775586643551,-426.16305729,0.000249,2]
[419988286,1775586643561,-118172.55153047,0.00025,2]
[419988288,1775586643573,-32467.66074117,0.00025,2]
[419988321,1775586646179,-7830.90944167,0.00025,2]
[419988322,1775586646237,-8026.83732293,0.00025,2]
[419988323,1775586646295,-1082.59443861,0.00025,2]
[419988324,1775586654890,162.88862495,0.000324,120]
[419988325,1775586667292,178.55499465,0.000324,120]
[419988328,1775586669139,201.58011305,0.000324,120]
[419988329,1775586681050,-1000.0,0.00013699,2]
[419988330,1775586698901,11979.09401317,0.000324,120]
[419988334,1775586954679,163.6834434,0.000324,120]
[419988335,1775586983271,161.26409044,0.000324,120]
[419988347,1775587268622,163.68344339,0.000324,120]
[419988348,1775587297045,161.26409044,0.000324,120]
[419988351,1775587580613,163.6834434,0.000324,120]
[419988352,1775587610203,161.26409044,0.000324,120]
[419988382,1775587832240,-231.26016421,0.00013233,14]
[419988383,1775587832250,-1000.0,0.00013699,2]
[419988384,1775587832260,-153.0,0.00018862,2]
[419988385,1775587832271,-156.0,0.00019862,2]
[419988386,1775587832281,-300.0,0.00019999,2]
[419988387,1775587832291,-300.0,0.00019999,2]
[419988388,1775587832300,-300.0,0.00019999,2]
[419988389,1775587832310,-200.0,0.0002,2]
[419988390,1775587832320,-162.73757682,0.0002,2]
[419988391,1775587832344,-37.26242318,0.0002,2]
[419988392,1775587832354,-200.0,0.0002,2]
[419988393,1775587832364,-200.0,0.0002,2]
[419988394,1775587832374,-200.0,0.0002,2]
[419988395,1775587832383,-200.0,0.0002,2]
[419988396,1775587832393,-200.0,0.0002,2]
[419988397,1775587832403,-200.0,0.0002,2]
[419988398,1775587832413,-200.0,0.0002,2]
[419988399,1775587832423,-200.0,0.0002,2]
[419988400,1775587832433,-98.61376855,0.000209,2]
[419988401,1775587832446,-59.38623145,0.000209,2]
[419988402,1775587832456,-154.0,0.000209,2]
[419988403,1775587832465,-142.09988186,0.00021239,2]
[419988415,1775587838458,-20.37010114,0.00021239,2]
[419988416,1775587838469,-158.0,0.000219,2]
[419988417,1775587838478,-154.0,0.000219,2]
[419988418,1775587838488,-13399.0113484,0.00022134,2]
[419988419,1775587838498,-307.89296959,0.0002232,2]
[419988420,1775587838511,-1302.01171621,0.0002232,2]
[419988421,1775587838521,-5165.4442443,0.00022703,2]
[419988422,1775587838532,-1794.4807136,0.00022703,2]
[419988423,1775587838542,-158.0,0.000229,2]
[419988424,1775587838552,-154.0,0.000229,2]
[419988425,1775587838563,-537.6845,0.0002336,2]
[419988426,1775587838573,-557.5788265,0.00023415,2]
[419988427,1775587838583,-578.20924308,0.0002347,2]
[419988428,1775587838593,-599.60298507,0.00023525,2]
[419988429,1775587838603,-621.78829552,0.0002358,2]
[419988430,1775587838614,-438.0,0.00023602,7]
[419988431,1775587838623,-625.0,0.00023602,10]
[419988432,1775587838633,-644.79446246,0.00023635,2]
[419988433,1775587838643,-1118.36455685,0.00023645,2]
[419988434,1775587838652,-668.65185757,0.0002369,2]
[419988435,1775587838662,-693.3919763,0.00023745,2]
[419988436,1775587838671,-719.04747942,0.000238,2]
[419988437,1775587838681,-745.65223616,0.00023855,2]
[419988438,1775587838690,-158.0,0.000239,2]
[419988439,1775587838699,-154.0,0.000239,2]
[419988440,1775587838708,-773.2413689,0.0002391,2]
[419988441,1775587838718,-801.85129955,0.00023965,2]
[419988442,1775587838729,-831.51979763,0.0002402,2]
[419988443,1775587838739,-1118.3645568,0.00024519,2]
[419988444,1775587838750,-196.3595236,0.00024534,2]
[419988445,1775587838759,-172.0,0.000249,2]
[419988446,1775587838769,-154.0,0.000249,2]
[419988447,1775587838779,-207.48,0.00024961,2]
[419988448,1775587838788,-363.1,0.00024986,2]
[419988449,1775587838798,-500.0,0.00024999,2]
[419988450,1775587838808,-500.0,0.00024999,2]
[419988451,1775587838818,-500.0,0.00024999,2]
[419988452,1775587838829,-500.0,0.00024999,2]
[419988453,1775587838840,-500.0,0.00024999,2]
[419988454,1775587838850,-500.0,0.00024999,2]
[419988455,1775587838859,-500.0,0.00024999,2]
[419988456,1775587838869,-500.0,0.00024999,2]
[419988457,1775587838879,-500.0,0.00024999,2]
[419988458,1775587838888,-500.0,0.00024999,2]
[419988459,1775587838898,-526.75213607,0.00024999,2]
[419988460,1775587838909,-500.0,0.00024999,2]
[419988461,1775587838919,-500.0,0.00024999,2]
[419988462,1775587838929,-500.0,0.00024999,2]
[419988463,1775587838939,-500.0,0.00024999,2]
[419988464,1775587838949,-500.0,0.00024999,2]
[419988465,1775587838959,-500.0,0.00024999,2]
[419988466,1775587838970,-500.0,0.00024999,2]
[419988467,1775587838980,-500.0,0.00024999,2]
[419988468,1775587838991,-32499.47502631,0.00025,2]
[419988469,1775587839001,-400.0,0.00025011,2]
[419988470,1775587839011,-194.14956072,0.00025182,2]
[419988471,1775587839022,-194.14956072,0.00025182,2]
[419988472,1775587839031,-454.5,0.00025253,2]
[419988473,1775587839041,-800.0,0.00025261,2]
[419988474,1775587839050,-454.5,0.00025268,2]
[419988475,1775587839060,-1118.3645568,0.00025393,2]
[419988476,1775587839072,-258.7005378,0.00025436,30]
[419988477,1775587839082,-500.0,0.00025436,30]
[419988478,1775587839092,-830.5335999,0.00025436,30]
[419988479,1775587839101,-1794.4807136,0.00025553,2]
[419988480,1775587839111,-165.24789259,0.00025622,2]
[419988481,1775587839120,-270.83333333,0.00025658,2]
[419988482,1775587839129,-5165.4442443,0.00025661,2]
[419988483,1775587839139,-170.0,0.000259,2]
[419988484,1775587839149,-204.45777092,0.00026167,5]
[419988485,1775587839159,-1118.3645568,0.00026267,2]
[419988486,1775587839169,-2205.0,0.00026312,2]
[419988487,1775587839178,-1406.0,0.00026312,2]
[419988488,1775587839188,-644.0,0.00026312,2]
[419988489,1775587839198,-777.44379848,0.00026621,2]
[419988490,1775587839208,-1569.93179168,0.00026892,12]
[419988491,1775587839219,-168.9595849,0.00026893,2]
[419988492,1775587839230,-151.0,0.000269,18]
[419988493,1775587839241,-5000.0,0.00026994,2]
[419988494,1775587839251,-11209.1635,0.00026994,2]
[419988495,1775587839262,-200.0,0.00026994,2]
[419988496,1775587839272,-995.16450479,0.0002701,2]
[419988497,1775587839283,-995.16450476,0.00027082,2]
[419988498,1775587839293,-168.0,0.00027088,2]
[419988499,1775587839304,-168.0,0.00027092,2]
[419988500,1775587839315,-592.0,0.000271,2]
[419988501,1775587839325,-420.05870119,0.0002711,2]
[419988502,1775587839335,-500.0,0.0002711,2]
[419988503,1775587839344,-500.0,0.0002711,2]
[419988504,1775587839355,-500.0,0.0002711,2]
[419988505,1775587839364,-500.0,0.0002711,2]
[419988506,1775587839374,-500.0,0.0002711,2]
[419988507,1775587839384,-327.05999182,0.0002711,2]
[419988508,1775587839395,-200.0,0.00027111,2]
[419988509,1775587839406,-168.0,0.00027114,2]
[419988510,1775587839417,-1118.3645568,0.00027141,2]
[419988511,1775587839428,-168.0,0.00027153,2]
[419988512,1775587839438,-995.16450476,0.00027154,2]
[419988513,1775587839448,-995.16450476,0.00027225,2]
[419988514,1775587839459,-362.56,0.00027254,3]
[419988515,1775587839470,-5000.0,0.00027264,2]
[419988516,1775587839480,-168.0,0.00027278,2]
[419988517,1775587839490,-270.83333333,0.00027297,3]
[419988518,1775587839500,-31498.69240776,0.00027297,3]
[419988520,1775587839511,-995.16450476,0.00027297,2]
[419988522,1775587839521,-500.0,0.00027373,2]
[419988524,1775587839531,-500.0,0.00027373,2]
[419988525,1775587839542,-197.461394,0.00027386,14]
[419988527,1775587839552,-248.414686,0.00027386,14]
[419988528,1775587839562,-158.759,0.00027396,2]
[419988530,1775587839573,-1342.3721527,0.00027396,2]
[419988531,1775587839583,-1342.37215269,0.00027396,2]
[419988532,1775587839593,-1342.37215269,0.00027396,2]
[419988533,1775587839604,-1342.37215269,0.00027396,2]
[419988534,1775587839614,-152.570862,0.00027397,2]
[419988535,1775587839625,-152.570862,0.00027397,2]
[419988536,1775587839635,-500.0,0.00027397,2]
[419988537,1775587839645,-500.0,0.00027397,2]
[419988538,1775587839655,-500.0,0.00027397,2]
[419988539,1775587839665,-500.0,0.00027397,2]
[419988540,1775587839676,-500.0,0.00027397,2]
[419988541,1775587839687,-500.0,0.00027397,2]
[419988542,1775587839697,-500.0,0.00027397,2]
[419988543,1775587839706,-500.0,0.00027397,2]
[419988544,1775587839716,-500.0,0.00027397,2]
[419988545,1775587839726,-500.0,0.00027397,2]
[419988546,1775587839736,-500.0,0.00027397,2]
[419988547,1775587839746,-796.73,0.00027397,2]
[419988548,1775587839756,-500.0,0.00027397,2]
[419988549,1775587839766,-500.0,0.00027397,2]
[419988550,1775587839777,-160.1049864,0.00027397,2]
[419988551,1775587839787,-1179.99,0.00027397,2]
[419988552,1775587839797,-500.0,0.00027397,2]
[419988553,1775587839807,-3750.14,0.00027397,2]
[419988554,1775587839817,-500.0,0.00027397,2]
[419988555,1775587839827,-500.0,0.00027397,2]
[419988556,1775587839837,-500.0,0.00027397,2]
[419988557,1775587839847,-2582.81,0.00027397,2]
[419988558,1775587839857,-500.0,0.00027397,2]
[419988559,1775587840192,-500.0,0.00027397,2]
[419988561,1775587840204,-597.27,0.00027397,2]
[419988563,1775587840215,-500.0,0.00027397,2]
[419988564,1775587840226,-1169.66,0.00027397,2]
[419988565,1775587840237,-500.0,0.00027397,2]
[419988566,1775587840247,-500.0,0.00027397,2]
[419988567,1775587840258,-1149.55,0.00027397,2]
[419988568,1775587840268,-1078.92,0.00027397,2]
[419988569,1775587840279,-500.0,0.00027397,2]
[419988570,1775587840289,-500.0,0.00027397,2]
[419988571,1775587840300,-500.0,0.00027397,2]
[419988572,1775587840311,-500.0,0.00027397,2]
[419988574,1775587840322,-500.0,0.00027397,2]
[419988575,1775587840333,-500.0,0.00027397,2]
[419988576,1775587840343,-500.0,0.00027397,2]
[419988577,1775587840354,-500.0,0.00027397,2]
[419988578,1775587840365,-2654.84,0.00027397,2]
[419988579,1775587840375,-500.0,0.00027397,2]
[419988580,1775587840386,-78.89395395,0.00027397,2]
[419988581,1775587840711,-421.10604605,0.00027397,2]
[419988582,1775587840721,-574.52,0.00027397,2]
[419988583,1775587840732,-543.37,0.00027397,2]
[419988584,1775587840742,-500.0,0.00027397,2]
[419988585,1775587840752,-245.07757422,0.00027397,2]
[419988586,1775587840762,-456.99738518,0.00027397,2]
[419988588,1775587840779,-43.00261482,0.00027397,2]
[419988589,1775587840790,-500.0,0.00027397,2]
[419988591,1775587840800,-555.04255051,0.00027397,2]
[419988592,1775587840811,-3280.99,0.00027397,2]
[419988593,1775587840821,-0.08260604,0.00027397,2]
[419988594,1775587842316,-518.29586565,0.00026621,2]
[419988595,1775587842327,-499.91739396,0.00027397,2]
[419988596,1775587842338,-101.12675528,0.00027397,2]
[419988646,1775587843601,-417.22046629,0.00027397,2]
[419988648,1775587843612,-1040.12,0.00027397,2]
[419988650,1775587843623,-500.0,0.00027397,2]
[419988652,1775587843635,-500.0,0.00027397,2]
[419988654,1775587843645,-486.06197535,0.00027397,2]
[419988657,1775587843659,-13.93802465,0.00027397,2]
[419988659,1775587843669,-500.0,0.00027397,2]
[419988660,1775587843679,-375.0384922,0.00027397,2]
[419988662,1775587843690,-500.0,0.00027397,2]
[419988664,1775587843700,-500.0,0.00027397,2]
[419988666,1775587843710,-500.0,0.00027397,2]
[419988668,1775587843720,-500.0,0.00027397,2]
[419988670,1775587843730,-500.0,0.00027397,2]
[419988672,1775587843740,-952.09,0.00027397,2]
[419988674,1775587843750,-500.0,0.00027397,2]
[419988676,1775587843759,-500.0,0.00027397,2]
[419988678,1775587843769,-1174.23,0.00027397,2]
[419988680,1775587843780,-500.0,0.00027397,2]
[419988682,1775587843790,-721.51,0.00027397,2]
[419988684,1775587843802,-500.0,0.00027397,2]
[419988686,1775587843812,-500.0,0.00027397,2]
[419988688,1775587843823,-500.0,0.00027397,2]
[419988690,1775587843834,-500.0,0.00027397,2]
[419988692,1775587843844,-500.0,0.00027397,2]
[419988694,1775587843854,-500.0,0.00027397,2]
[419988696,1775587843864,-500.0,0.00027397,2]
[419988722,1775587844084,-500.0,0.00027397,2]
[419988724,1775587844095,-500.0,0.00027397,2]